fUST/lending_fUST_20250203
["ID","MTS","AMOUNT","RATE_DAILY","PERIOD"]
[351418004,1738563064921,-500.0,0.00016849,2]
[351418005,1738563064930,-789.68,0.00016849,2]
[351418006,1738563064939,-777.36,0.00016849,2]
[351418007,1738563064948,-980.313516,0.00016849,2]
[351418008,1738563064958,-980.313516,0.00016849,2]
[351418009,1738563064967,-512.3,0.00016849,2]
[351418010,1738563064977,-500.0,0.00016849,2]
[351418011,1738563064986,-980.313516,0.00016849,2]
[351418012,1738563064996,-980.313516,0.00016849,2]
[351418013,1738563065005,-500.0,0.00016849,2]
[351418014,1738563065015,-500.0,0.00016849,2]
[351418015,1738563065025,-500.0,0.00016849,2]
[351418016,1738563065034,-3407.960334,0.00016849,2]
[351418017,1738563065044,-3407.960334,0.00016849,2]
[351418018,1738563065053,-500.0,0.00016849,2]
[351418019,1738563065062,-577.18360982,0.00016849,2]
[351418020,1738563065071,-500.0,0.00016849,2]
[351418021,1738563065081,-500.0,0.00016849,2]
[351418022,1738563065091,-3407.960334,0.00016849,2]
[351418023,1738563065101,-3407.960334,0.00016849,2]
[351418024,1738563065111,-500.0,0.00016849,2]
[351418025,1738563065120,-525.98111908,0.00016849,2]
[351418026,1738563065130,-500.0,0.00016849,2]
[351418027,1738563065139,-500.0,0.00016849,2]
[351418028,1738563065149,-835.39,0.00016849,2]
[351418029,1738563065158,-500.0,0.00016849,2]
[351418030,1738563065170,-500.0,0.00016849,2]
[351418031,1738563065179,-500.0,0.00016849,2]
[351418032,1738563065189,-500.0,0.00016849,2]
[351418033,1738563065199,-403.94371741,0.00016849,2]
[351418034,1738563065208,-500.0,0.00016849,2]
[351418035,1738563065218,-500.0,0.00016849,2]
[351418036,1738563065227,-2311.09,0.00016849,2]
[351418037,1738563065237,-500.0,0.00016849,2]
[351418038,1738563065247,-500.0,0.00016849,2]
[351418039,1738563065256,-500.0,0.00016849,2]
[351418040,1738563065265,-547.86,0.00016849,2]
[351418041,1738563065276,-301.50683969,0.00016849,2]
[351418042,1738563065289,-500.0,0.00016849,2]
[351418043,1738563065298,-500.0,0.00016849,2]
[351418044,1738563065308,-882.63,0.00016849,2]
[351418045,1738563065319,-501.07184657,0.00016849,2]
[351418046,1738563065328,-656.25,0.00016849,2]
[351418047,1738563065339,-517.47,0.00016849,2]
[351418048,1738563065348,-749.17,0.00016849,2]
[351418049,1738563065359,-296.02298951,0.00016849,2]
[351418050,1738563065368,-500.0,0.00016849,2]
[351418051,1738563065377,-500.0,0.00016849,2]
[351418052,1738563065387,-500.0,0.00016849,2]
[351418053,1738563065396,-504.09546336,0.00016849,2]
[351418054,1738563065406,-500.0,0.00016849,2]
[351418055,1738563065418,-858.38,0.00016849,2]
[351418056,1738563065428,-500.0,0.00016849,2]
[351418057,1738563065437,-500.0,0.00016849,2]
[351418058,1738563065447,-500.0,0.00016849,2]
[351418059,1738563065456,-1314.7,0.00016849,2]
[351418060,1738563065465,-500.0,0.00016849,2]
[351418061,1738563065475,-1778.64,0.00016849,2]
[351418062,1738563065485,-755.76,0.00016849,2]
[351418063,1738563065495,-500.0,0.00016849,2]
[351418064,1738563065505,-500.0,0.00016849,2]
[351418065,1738563065515,-500.0,0.00016849,2]
[351418066,1738563065525,-500.0,0.00016849,2]
[351418067,1738563065535,-519.73,0.00016849,2]
[351418068,1738563065545,-4528.1,0.00016849,2]
[351418069,1738563065555,-719.38,0.00016849,2]
[351418070,1738563065564,-625.84,0.00016849,2]
[351418071,1738563065574,-500.0,0.00016849,2]
[351418072,1738563065583,-500.0,0.00016849,2]
[351418073,1738563065593,-500.0,0.00016849,2]
[351418074,1738563065603,-791.61,0.00016849,2]
[351418075,1738563065612,-889.99,0.00016849,2]
[351418076,1738563065622,-627.81,0.00016849,2]
[351418077,1738563065631,-500.0,0.00016849,2]
[351418078,1738563065641,-500.0,0.00016849,2]
[351418079,1738563065651,-500.0,0.00016849,2]
[351418080,1738563065660,-500.0,0.00016849,2]
[351418081,1738563065673,-779.04,0.00016849,2]
[351418082,1738563065683,-2522.94,0.00016849,2]
[351418083,1738563065693,-705.75,0.00016849,2]
[351418084,1738563065702,-500.0,0.00016849,2]
[351418085,1738563065712,-500.0,0.00016849,2]
[351418086,1738563065721,-500.0,0.00016849,2]
[351418087,1738563065731,-500.0,0.00016849,2]
[351418088,1738563065741,-500.0,0.00016849,2]
[351418089,1738563065751,-691.6,0.00016849,2]
[351418090,1738563065761,-500.0,0.00016849,2]
[351418091,1738563065771,-4739.52,0.00016849,2]
[351418092,1738563065780,-500.0,0.00016849,2]
[351418093,1738563065789,-500.0,0.00016849,2]
[351418094,1738563065799,-507.19081455,0.00016849,2]
[351418095,1738563065808,-500.0,0.00016849,2]
[351418096,1738563065817,-1221.75,0.00016849,2]
[351418097,1738563065827,-3163.23,0.00016849,2]
[351418098,1738563065837,-500.0,0.00016849,2]
[351418099,1738563065846,-500.0,0.00016849,2]
[351418100,1738563065855,-500.0,0.00016849,2]
[351418101,1738563065864,-500.0,0.00016849,2]
[351418102,1738563065874,-652.57,0.00016849,2]
[351418103,1738563065883,-500.0,0.00016849,2]
[351418104,1738563065892,-500.0,0.00016849,2]
[351418105,1738563065901,-500.0,0.00016849,2]
[351418106,1738563065910,-501.40249674,0.00016849,2]
[351418107,1738563065923,-937.0,0.00016849,2]
[351418108,1738563065932,-500.0,0.00016849,2]
[351418109,1738563065942,-520.39295089,0.00016849,2]
[351418110,1738563065951,-500.0,0.00016849,2]
[351418111,1738563065961,-215.673964,0.00016849,2]
[351418112,1738563065971,-500.0,0.00016849,2]
[351418113,1738563065980,-544.28,0.00016849,2]
[351418114,1738563065989,-215.673964,0.00016849,2]
[351418115,1738563065999,-1458.51,0.00016849,2]
[351418116,1738563066008,-500.0,0.00016849,2]
[351418117,1738563066017,-215.673964,0.00016849,2]
[351418118,1738563066027,-500.0,0.00016849,2]
[351418119,1738563066036,-500.0,0.00016849,2]
[351418120,1738563066132,-215.673964,0.00016849,2]
[351418121,1738563066142,-500.0,0.00016849,2]
[351418122,1738563066151,-513.07,0.00016849,2]
[351418123,1738563066161,-500.0,0.00016849,2]
[351418124,1738563066172,-500.0,0.00016849,2]
[351418125,1738563066182,-500.0,0.00016849,2]
[351418126,1738563066192,-500.0,0.00016849,2]
[351418127,1738563066202,-500.0,0.00016849,2]
[351418128,1738563066211,-506.61,0.00016849,2]
[351418129,1738563066221,-702.99,0.00016849,2]
[351418130,1738563066231,-1462.61,0.00016849,2]
[351418131,1738563066240,-980.45,0.00016849,2]
[351418132,1738563066249,-500.0,0.00016849,2]
[351418133,1738563066259,-600.07,0.00016849,2]
[351418134,1738563066270,-500.0,0.00016849,2]
[351418135,1738563066280,-500.0,0.00016849,2]
[351418136,1738563066294,-638.01552119,0.00016849,2]
[351418137,1738563066303,-767.63,0.00016849,2]
[351418138,1738563066313,-729.16,0.00016849,2]
[351418139,1738563066322,-11760.98,0.00016849,2]
[351418140,1738563066332,-500.0,0.00016849,2]
[351418141,1738563066341,-500.0,0.00016849,2]
[351418142,1738563066351,-500.0,0.00016849,2]
[351418143,1738563066362,-3928.81,0.00016849,2]
[351418144,1738563066372,-500.0,0.00016849,2]
[351418145,1738563066381,-1446.79,0.00016849,2]
[351418146,1738563066391,-482.09860087,0.00016849,2]
[351418147,1738563066401,-2638.63,0.00016849,2]
[351418148,1738563066410,-214.36610232,0.00016849,2]
[351418149,1738563066421,-500.0,0.00016849,2]
[351418150,1738563066430,-500.0,0.00016849,2]
[351418151,1738563066440,-500.0,0.00016849,2]
[351418152,1738563066450,-500.0,0.00016849,2]
[351418153,1738563066460,-6537.694131,0.00016849,2]
[351418154,1738563066470,-61436.77,0.00016849,2]
[351418155,1738563066479,-6537.694131,0.00016849,2]
[351418156,1738563066489,-1824.39,0.00016849,2]
[351418157,1738563066499,-500.0,0.00016849,2]
[351418158,1738563066509,-833.33,0.00016849,2]
[351418159,1738563066518,-615.70095908,0.00016849,2]
[351418160,1738563066527,-500.0,0.00016849,2]
[351418161,1738563066537,-6537.694131,0.00016849,2]
[351418162,1738563066546,-1183.89,0.00016849,2]
[351418163,1738563066556,-6537.694131,0.00016849,2]
[351418164,1738563066565,-500.0,0.00016849,2]
[351418165,1738563066575,-3148.47,0.00016849,2]
[351418166,1738563066584,-500.0,0.00016849,2]
[351418167,1738563066593,-500.0,0.00016849,2]
[351418168,1738563066602,-505.95292234,0.00016849,2]
[351418169,1738563066612,-500.0,0.00016849,2]
[351418170,1738563066621,-1419.65,0.00016849,2]
[351418171,1738563066631,-500.0,0.00016849,2]
[351418172,1738563066640,-1403.722995,0.00016849,2]
[351418173,1738563066649,-1403.722995,0.00016849,2]
[351418174,1738563066658,-500.0,0.00016849,2]
[351418175,1738563066669,-1000.0,0.00016849,7]
[351418176,1738563066678,-1754.66,0.00016849,2]
[351418177,1738563066687,-500.0,0.00016849,2]
[351418178,1738563066696,-500.0,0.00016849,2]
[351418179,1738563066705,-687.5,0.00016849,2]
[351418180,1738563066715,-1403.722995,0.00016849,2]
[351418181,1738563066724,-1403.722995,0.00016849,2]
[351418182,1738563066734,-500.0,0.00016849,2]
[351418183,1738563066743,-16475.07,0.00016849,2]
[351418184,1738563066753,-500.0,0.00016849,2]
[351418185,1738563066763,-500.0,0.00016849,2]
[351418186,1738563066772,-753.6,0.00016849,2]
[351418187,1738563066782,-500.0,0.00016849,2]
[351418188,1738563066791,-500.0,0.00016849,2]
[351418189,1738563066800,-1054.43,0.00016849,2]
[351418190,1738563066810,-500.0,0.00016849,2]
[351418191,1738563066819,-1062.72,0.00016849,2]
[351418192,1738563066829,-624.492297,0.00016849,2]
[351418193,1738563066838,-624.492297,0.00016849,2]
[351418194,1738563066847,-1315.13,0.00016849,2]
[351418195,1738563066856,-504.45,0.00016849,2]
[351418196,1738563066865,-500.0,0.00016849,2]
[351418197,1738563066874,-615.66335861,0.00016849,2]
[351418198,1738563066883,-624.492297,0.00016849,2]
[351418199,1738563066893,-624.492297,0.00016849,2]
[351418200,1738563066902,-7496.11,0.00016849,2]
[351418201,1738563066911,-1698.44,0.00016849,2]
[351418202,1738563066921,-500.0,0.00016849,2]
[351418203,1738563066930,-500.0,0.00016849,2]
[351418204,1738563066939,-1525.888876,0.00016849,2]
[351418205,1738563066948,-1525.888876,0.00016849,2]
[351418206,1738563066959,-1003.61,0.00016849,2]
[351418207,1738563066969,-500.0,0.00016849,2]
[351418208,1738563066980,-1525.888876,0.00016849,2]
[351418209,1738563066988,-1860.51,0.00016849,2]
[351418210,1738563066998,-1525.888876,0.00016849,2]
[351418211,1738563067006,-630.17,0.00016849,2]
[351418212,1738563067016,-500.0,0.00016849,2]
[351418213,1738563067027,-500.0,0.00016849,2]
[351418214,1738563067037,-750.9,0.00016849,2]
[351418215,1738563067047,-500.0,0.00016849,2]
[351418216,1738563067056,-500.0,0.00016849,2]
[351418217,1738563067065,-1320.37,0.00016849,2]
[351418218,1738563067074,-500.0,0.00016849,2]
[351418219,1738563067083,-500.0,0.00016849,2]
[351418220,1738563067093,-537.05,0.00016849,2]
[351418221,1738563067102,-500.0,0.00016849,2]
[351418222,1738563067111,-500.28054974,0.00016873,2]
[351418223,1738563067121,-570.51225854,0.00016873,2]
[351418224,1738563067130,-500.0,0.00016873,2]
[351418225,1738563067140,-500.0,0.00016873,2]
[351418226,1738563067150,-152.04198576,0.00016873,2]
[351418227,1738563067159,-500.0,0.00016873,2]
[351418228,1738563067171,-867.62521244,0.00016898,2]
[351418229,1738563067180,-151.0,0.000169,2]
[351418230,1738563067189,-216.74707501,0.00016975,2]
[351418231,1738563067198,-510.09140036,0.00016984,2]
[351418232,1738563067207,-500.0,0.00016984,2]
[351418233,1738563067216,-500.0,0.00016984,2]
[351418234,1738563067226,-500.0,0.00016985,2]
[351418235,1738563067236,-211.284528,0.00016985,2]
[351418236,1738563067245,-211.284528,0.00016985,2]
[351418237,1738563067254,-151.0,0.00016985,2]
[351418238,1738563067264,-798.16161,0.00016985,2]
[351418239,1738563067277,-798.16161,0.00016985,2]
[351418240,1738563067287,-500.0,0.00016985,2]
[351418241,1738563067296,-500.0,0.00016985,2]
[351418242,1738563067305,-500.0,0.00016985,2]
[351418243,1738563067314,-500.0,0.00016986,2]
[351418244,1738563067324,-500.0,0.00016986,2]
[351418245,1738563067333,-500.0,0.00016986,2]
[351418246,1738563067342,-500.0,0.00016986,2]
[351418247,1738563067353,-500.0,0.00016986,2]
[351418248,1738563067362,-500.0,0.00016986,2]
[351418249,1738563067371,-500.0,0.00016986,2]
[351418250,1738563067381,-500.0,0.00016986,2]
[351418251,1738563067391,-500.0,0.00016986,2]
[351418252,1738563067400,-500.0,0.00016986,2]
[351418253,1738563067409,-500.0,0.00016986,2]
[351418254,1738563067421,-500.0,0.00016986,2]
[351418255,1738563067430,-516.58573317,0.00016986,2]
[351418256,1738563067440,-500.0,0.00016986,2]
[351418257,1738563067450,-500.0,0.00016986,2]
[351418258,1738563067459,-500.0,0.00016986,2]
[351418259,1738563067468,-563.10237691,0.00016986,2]
[351418260,1738563067477,-151.0,0.00016986,2]
[351418261,1738563067572,-463.21593352,0.00016986,2]
[351418262,1738563067582,-500.0,0.00016986,2]
[351418263,1738563067592,-500.0,0.00016986,2]
[351418264,1738563067602,-504.55704135,0.00016986,2]
[351418265,1738563067612,-500.0,0.00016986,2]
[351418266,1738563067621,-500.0,0.00016986,2]
[351418267,1738563067630,-500.0,0.00016986,2]
[351418268,1738563067639,-272.65975269,0.00016986,2]
[351418269,1738563067649,-500.0,0.00016986,2]
[351418270,1738563067659,-500.0,0.00016986,2]
[351418271,1738563067673,-500.0,0.00016986,2]
[351418272,1738563067683,-500.0,0.00016986,2]
[351418273,1738563067693,-500.0,0.00016986,2]
[351418274,1738563067702,-500.0,0.00016986,5]
[351418275,1738563067712,-500.0,0.00016986,2]
[351418276,1738563067721,-500.0,0.00016986,2]
[351418277,1738563067730,-508.1038486,0.00016986,2]
[351418278,1738563067739,-500.0,0.00016986,2]
[351418279,1738563067749,-500.0,0.00016986,2]
[351418280,1738563067758,-500.0,0.00016986,2]
[351418281,1738563067768,-500.0,0.00016986,2]
[351418282,1738563067777,-500.0,0.00016986,2]
[351418283,1738563067787,-489.51596559,0.00016986,2]
[351418284,1738563067796,-500.0,0.00016986,2]
[351418285,1738563067805,-500.0,0.00016986,2]
[351418286,1738563067815,-500.0,0.00016986,2]
[351418287,1738563067824,-500.0,0.00016986,2]
[351418288,1738563067834,-500.0,0.00016986,2]
[351418289,1738563067844,-500.0,0.00016986,2]
[351418290,1738563067853,-500.0,0.00016986,2]
[351418291,1738563067863,-500.0,0.00016986,2]
[351418292,1738563067872,-500.0,0.00016986,2]
[351418293,1738563067882,-500.0,0.00016986,2]
[351418294,1738563067892,-500.0,0.00016986,2]
[351418295,1738563067902,-500.0,0.00016986,2]
[351418296,1738563067911,-151.0,0.00016986,2]
[351418297,1738563067924,-500.0,0.00016986,2]
[351418298,1738563067934,-500.0,0.00016986,2]
[351418299,1738563067943,-500.0,0.00016986,2]
[351418300,1738563067953,-1000.0,0.00016986,2]
[351418301,1738563067962,-500.0,0.00016986,2]
[351418302,1738563067972,-500.0,0.00016986,2]
[351418303,1738563067982,-500.0,0.00016986,2]
[351418304,1738563067991,-222.627219,0.00016986,2]
[351418305,1738563068000,-222.627219,0.00016986,2]
[351418306,1738563068010,-500.0,0.00016986,2]
[351418307,1738563068019,-255.01029611,0.00016986,2]
[351418308,1738563068029,-500.0,0.00016986,2]
[351418309,1738563068039,-1005.887843,0.00016986,2]
[351418310,1738563068048,-500.0,0.00016986,2]
[351418311,1738563068058,-1005.887843,0.00016986,2]
[351418312,1738563068067,-500.0,0.00016986,2]
[351418313,1738563068077,-372.623118,0.00016986,2]
[351418314,1738563068087,-372.623118,0.00016986,2]
[351418315,1738563068097,-500.0,0.00016986,2]
[351418316,1738563068107,-500.0,0.00016986,2]
[351418317,1738563068116,-500.0,0.00016986,2]
[351418318,1738563068126,-1784.938725,0.00016986,2]
[351418319,1738563068137,-1784.938725,0.00016986,2]
[351418320,1738563068146,-500.0,0.00016986,2]
[351418321,1738563068156,-500.0,0.00016986,2]
[351418322,1738563068169,-500.0,0.00016986,2]
[351418323,1738563068178,-500.0,0.00016986,2]
[351418324,1738563068188,-500.0,0.00016986,2]
[351418325,1738563068197,-301.54636039,0.00016986,2]
[351418326,1738563068212,-500.0,0.00016986,2]
[351418327,1738563068231,-500.0,0.00016986,2]
[351418328,1738563068247,-273.26861,0.00016986,2]
[351418329,1738563068265,-500.0,0.00016986,2]
[351418330,1738563068287,-500.0,0.00016986,2]
[351418331,1738563068305,-500.0,0.00016986,2]
[351418332,1738563068323,-352.48692064,0.00016986,2]
[351418333,1738563068339,-500.0,0.00016986,2]
[351418334,1738563068353,-500.0,0.00016986,2]
[351418335,1738563068371,-402.45424366,0.00016986,2]
[351418336,1738563068392,-4207.032437,0.00016986,2]
[351418337,1738563068410,-500.0,0.00016986,2]
[351418338,1738563068428,-500.0,0.00016986,2]
[351418339,1738563068449,-500.0,0.00016986,2]
[351418340,1738563068463,-500.0,0.00016986,2]
[351418341,1738563068479,-567.5,0.00016986,2]
[351418342,1738563068491,-4207.032437,0.00016986,2]
[351418343,1738563068506,-501.86,0.00016986,2]
[351418344,1738563068521,-500.0,0.00016986,2]
[351418345,1738563068535,-500.0,0.00016986,2]
[351418346,1738563068551,-500.0,0.00016986,2]
[351418347,1738563068565,-500.0,0.00016986,2]
[351418348,1738563068579,-466.33619607,0.00016986,2]
[351418349,1738563068593,-500.0,0.00016986,2]
[351418350,1738563068608,-500.0,0.00016986,2]
[351418351,1738563068622,-500.0,0.00016986,2]
[351418352,1738563068636,-858.78,0.00016986,2]
[351418353,1738563068650,-500.0,0.00016986,2]
[351418354,1738563068666,-500.0,0.00016986,2]
[351418355,1738563068680,-500.0,0.00016986,2]
[351418356,1738563068695,-500.0,0.00016986,2]
[351418357,1738563068713,-413.34207417,0.00016986,2]
[351418358,1738563068727,-500.0,0.00016986,2]
[351418359,1738563068742,-500.0,0.00016986,2]
[351418360,1738563068756,-500.0,0.00016986,2]
[351418361,1738563068769,-500.0,0.00016986,2]
[351418362,1738563068784,-500.0,0.00016986,2]
[351418363,1738563068798,-500.0,0.00016986,2]
[351418364,1738563068812,-211.284528,0.00016986,2]
[351418365,1738563068827,-211.284528,0.00016986,2]
[351418366,1738563068841,-211.284528,0.00016986,2]
[351418367,1738563068855,-948.21,0.00016986,2]
[351418368,1738563068870,-211.284528,0.00016986,2]
[351418369,1738563068884,-500.0,0.00016986,2]
[351418370,1738563068898,-500.0,0.00016986,2]
[351418371,1738563068912,-500.0,0.00016986,2]
[351418372,1738563068927,-500.0,0.00016986,2]
[351418373,1738563068941,-500.0,0.00016986,2]
[351418374,1738563068956,-151.0,0.00016986,2]
[351418375,1738563068972,-151.0,0.00016986,2]
[351418376,1738563068986,-500.0,0.00016986,2]
[351418377,1738563069001,-467.150601,0.00016986,2]
[351418378,1738563069017,-500.0,0.00016986,2]
[351418379,1738563069032,-500.0,0.00016986,2]
[351418380,1738563069046,-467.150601,0.00016986,2]
[351418381,1738563069060,-500.0,0.00016986,2]
[351418382,1738563069075,-500.0,0.00016986,2]
[351418383,1738563069088,-500.0,0.00016986,2]
[351418384,1738563069101,-500.0,0.00016986,2]
[351418385,1738563069111,-500.0,0.00016986,2]
[351418386,1738563069121,-500.0,0.00016986,2]
[351418387,1738563069130,-500.0,0.00016986,2]
[351418388,1738563069139,-500.0,0.00016986,2]
[351418389,1738563069149,-500.0,0.00016986,2]
[351418390,1738563069158,-500.0,0.00016986,2]
[351418391,1738563069321,-302.64086119,0.00016986,2]
[351418392,1738563069345,-506.98929144,0.00016986,2]
[351418393,1738563069355,-500.0,0.00016986,2]
[351418394,1738563069365,-500.0,0.00016986,2]
[351418395,1738563069374,-661.91,0.00016986,2]
[351418396,1738563069384,-798.16161,0.00016986,2]
[351418397,1738563069394,-500.0,0.00016986,2]
[351418398,1738563069403,-798.16161,0.00016986,2]
[351418399,1738563069415,-500.0,0.00016986,2]
[351418400,1738563069427,-504.50866241,0.00016986,2]
[351418401,1738563069437,-798.16161,0.00016986,2]
[351418402,1738563069446,-798.16161,0.00016986,2]
[351418403,1738563069456,-729.69,0.00016986,2]
[351418404,1738563069466,-500.0,0.00016986,2]
[351418405,1738563069477,-500.0,0.00016986,2]
[351418406,1738563069488,-505.78145775,0.00016986,2]
[351418407,1738563069500,-812.5,0.00016986,2]
[351418408,1738563069511,-593.59321924,0.00016986,2]
[351418409,1738563069523,-500.0,0.00016986,2]
[351418410,1738563069534,-500.0,0.00016986,2]
[351418411,1738563069545,-500.0,0.00016986,2]
[351418412,1738563069557,-500.0,0.00016986,2]
[351418413,1738563069567,-590.31147714,0.00016986,2]
[351418414,1738563069578,-500.0,0.00016986,2]
[351418415,1738563069588,-533.54,0.00016986,2]
[351418416,1738563069599,-500.0,0.00016986,2]
[351418417,1738563069610,-500.0,0.00016986,2]
[351418418,1738563069620,-500.0,0.00016986,2]
[351418419,1738563069630,-630.84122922,0.00016986,2]
[351418420,1738563069641,-500.0,0.00016986,2]
[351418421,1738563069652,-500.0,0.00016986,2]
[351418422,1738563069662,-500.0,0.00016986,2]
[351418423,1738563069681,-500.0,0.00016986,2]
[351418424,1738563069692,-768.15,0.00016986,2]
[351418425,1738563069702,-500.0,0.00016986,2]
[351418426,1738563069712,-172.660072,0.00016986,2]
[351418427,1738563069722,-172.660072,0.00016986,2]
[351418428,1738563069732,-500.0,0.00016986,2]
[351418429,1738563069743,-500.0,0.00016986,2]
[351418430,1738563069753,-500.0,0.00016986,2]
[351418431,1738563069762,-172.660072,0.00016986,2]
[351418432,1738563069772,-172.660072,0.00016986,2]
[351418433,1738563069781,-500.0,0.00016986,2]
[351418434,1738563069792,-708.33,0.00016986,2]
[351418435,1738563069802,-500.0,0.00016986,2]
[351418436,1738563069812,-500.0,0.00016986,2]
[351418437,1738563069822,-500.0,0.00016986,2]
[351418438,1738563069831,-500.0,0.00016986,2]
[351418439,1738563069841,-500.0,0.00016986,2]
[351418440,1738563069850,-500.0,0.00016986,2]
[351418441,1738563069859,-1236.84,0.00016986,2]
[351418442,1738563069869,-395.46204355,0.00016986,2]
[351418443,1738563069879,-500.0,0.00016986,2]
[351418444,1738563069888,-500.0,0.00016986,2]
[351418445,1738563069897,-633.38,0.00016986,2]
[351418446,1738563069906,-500.0,0.00016986,2]
[351418447,1738563069918,-720.96,0.00016986,2]
[351418448,1738563069928,-200.0,0.00016986,2]
[351418449,1738563069938,-500.0,0.00016986,2]
[351418450,1738563069947,-1000.0,0.00016986,2]
[351418451,1738563069957,-500.0,0.00016986,2]
[351418452,1738563069967,-500.0,0.00016986,2]
[351418453,1738563069976,-517.12,0.00016986,2]
[351418454,1738563069986,-500.0,0.00016986,2]
[351418455,1738563069995,-500.0,0.00016986,2]
[351418456,1738563070005,-1436.76,0.00016986,2]
[351418457,1738563070015,-494.94584527,0.00016986,2]
[351418458,1738563070025,-500.0,0.00016986,2]
[351418459,1738563070034,-500.0,0.00016986,2]
[351418460,1738563070044,-500.0,0.00016986,2]
[351418461,1738563070054,-500.0,0.00016986,2]
[351418462,1738563070064,-506.41735699,0.00016986,2]
[351418463,1738563070074,-500.0,0.00016986,2]
[351418464,1738563070084,-500.0,0.00016986,2]
[351418465,1738563070094,-591.16,0.00016986,2]
[351418466,1738563070106,-500.0,0.00016986,2]
[351418467,1738563070115,-872.56,0.00016986,2]
[351418468,1738563070125,-500.0,0.00016986,2]
[351418469,1738563070134,-206.84474737,0.00016986,2]
[351418470,1738563070144,-531.14,0.00016986,2]
[351418471,1738563070154,-310.19364759,0.00016986,2]
[351418472,1738563070164,-183.09257314,0.00016986,2]
[351418473,1738563070177,-500.0,0.00016986,2]
[351418474,1738563070187,-500.0,0.00016986,2]
[351418475,1738563070197,-500.0,0.00016986,2]
[351418476,1738563070207,-213.76690615,0.00016986,2]
[351418477,1738563070217,-500.0,0.00016986,2]
[351418478,1738563070227,-500.0,0.00016986,2]
[351418479,1738563070236,-500.0,0.00016986,2]
[351418480,1738563070248,-2985.51,0.00016986,2]
[351418481,1738563070259,-576.21,0.00016986,2]
[351418482,1738563070270,-500.0,0.00016986,2]
[351418483,1738563070285,-500.0,0.00016986,2]
[351418484,1738563070297,-500.0,0.00016986,2]
[351418485,1738563070307,-500.0,0.00016986,2]
[351418486,1738563070317,-789.68,0.00016986,2]
[351418487,1738563070328,-777.36,0.00016986,2]
[351418488,1738563070338,-980.313516,0.00016986,2]
[351418489,1738563070347,-980.313516,0.00016986,2]
[351418490,1738563070358,-512.3,0.00016986,2]
[351418491,1738563070368,-500.0,0.00016986,2]
[351418492,1738563070377,-980.313516,0.00016986,2]
[351418493,1738563070387,-500.0,0.00016986,2]
[351418494,1738563070396,-980.313511,0.00016986,2]
[351418495,1738563070406,-500.0,0.00016986,2]
[351418496,1738563070421,-500.0,0.00016986,2]
[351418497,1738563070431,-500.0,0.00016986,2]
[351418498,1738563070441,-3407.960334,0.00016986,2]
[351418499,1738563070451,-500.0,0.00016986,2]
[351418500,1738563070462,-500.0,0.00016986,2]
[351418501,1738563070472,-3407.9603356,0.00016986,2]
[351418502,1738563070482,-500.0,0.00016986,2]
[351418503,1738563070492,-500.0,0.00016986,2]